[Event "Early-Titled-Tuesday-Blitz-February-13-2024"]
[Site "Chess.com"]
[Date "2024.02.13"]
[Round "9"]
[White "LiamPutnam2008"]
[Black "HaryKane"]
[Result "1-0"]
[WhiteElo "2817"]
[BlackElo "2588"]
[TimeControl "180+1"]
[EndTime "9:48:36 PST"]
[Termination "LiamPutnam2008 won on time"]

1. e4 {[%clk 0:02:56]} 1... d6 {[%clk 0:02:59.7]} 2. d4 {[%clk 0:02:55.8]} 2...
g6 {[%clk 0:03:00]} 3. Nf3 {[%clk 0:02:56.4]} 3... Bg7 {[%clk 0:02:57.2]} 4. Bc4
{[%clk 0:02:51.8]} 4... Nc6 {[%clk 0:02:52.1]} 5. O-O {[%clk 0:02:46.8]} 5... e6
{[%clk 0:02:42]} 6. d5 {[%clk 0:02:30.4]} 6... exd5 {[%clk 0:02:41.2]} 7. exd5
{[%clk 0:02:30.1]} 7... Nce7 {[%clk 0:02:40.9]} 8. Re1 {[%clk 0:02:30.7]} 8...
Nf6 {[%clk 0:02:40.7]} 9. Qe2 {[%clk 0:02:31]} 9... Bg4 {[%clk 0:02:35.1]} 10.
Bg5 {[%clk 0:02:27.2]} 10... h6 {[%clk 0:02:30.8]} 11. Bd2 {[%clk 0:02:14.3]}
11... Bxf3 {[%clk 0:02:29]} 12. Qxf3 {[%clk 0:02:08.3]} 12... O-O {[%clk
0:02:29]} 13. Bc3 {[%clk 0:02:05.8]} 13... Nf5 {[%clk 0:02:11.3]} 14. Nd2 {[%clk
0:02:04.3]} 14... Nh4 {[%clk 0:02:03.5]} 15. Qh3 {[%clk 0:01:58.3]} 15... g5
{[%clk 0:01:59.7]} 16. g3 {[%clk 0:01:46.6]} 16... Ng6 {[%clk 0:01:59.1]} 17.
Re2 {[%clk 0:01:38.9]} 17... Qd7 {[%clk 0:01:43.5]} 18. Qg2 {[%clk 0:01:38.3]}
18... Rfe8 {[%clk 0:01:39.8]} 19. Rae1 {[%clk 0:01:37.3]} 19... Rxe2 {[%clk
0:01:39.6]} 20. Rxe2 {[%clk 0:01:38.2]} 20... Re8 {[%clk 0:01:35.6]} 21. Qf3
{[%clk 0:01:36.1]} 21... g4 {[%clk 0:01:25.1]} 22. Qd3 {[%clk 0:01:28]} 22... a6
{[%clk 0:01:20.5]} 23. Re6 {[%clk 0:00:51.2]} 23... fxe6 {[%clk 0:00:59.1]} 24.
dxe6 {[%clk 0:00:52.1]} 24... Qe7 {[%clk 0:00:25]} 25. Qxg6 {[%clk 0:00:44.8]}
25... Rf8 {[%clk 0:00:24.5]} 26. Ne4 {[%clk 0:00:36.9]} 26... Kh8 {[%clk
0:00:23.6]} 27. Nxf6 {[%clk 0:00:35]} 27... Bxf6 {[%clk 0:00:20.5]} 28. Qxh6+
{[%clk 0:00:35.3]} 28... Kg8 {[%clk 0:00:20.8]} 29. Qg6+ {[%clk 0:00:33.7]}
29... Kh8 {[%clk 0:00:20.8]} 30. Qh5+ {[%clk 0:00:33.4]} 30... Kg8 {[%clk
0:00:13.3]} 31. Qxg4+ {[%clk 0:00:33.2]} 31... Kh8 {[%clk 0:00:13.3]} 32. Qh5+
{[%clk 0:00:33.7]} 32... Kg8 {[%clk 0:00:13.5]} 33. Qg6+ {[%clk 0:00:19]} 33...
Kh8 {[%clk 0:00:13.5]} 34. Bd2 {[%clk 0:00:18.1]} 34... c6 {[%clk 0:00:11.5]}
35. Bh6 {[%clk 0:00:17.1]} 35... Bg7 {[%clk 0:00:10.1]} 36. Bg5 {[%clk
0:00:10.6]} 36... Bf6 {[%clk 0:00:09.5]} 37. Qh6+ {[%clk 0:00:08.2]} 37... Kg8
{[%clk 0:00:09]} 38. Qg6+ {[%clk 0:00:08.9]} 38... Kh8 {[%clk 0:00:09.4]} 39. h4
{[%clk 0:00:09]} 39... Bxg5 {[%clk 0:00:05.3]} 40. hxg5 {[%clk 0:00:09.9]} 40...
d5 {[%clk 0:00:05.8]} 41. Bd3 {[%clk 0:00:10.3]} 41... Qg7 {[%clk 0:00:03.7]}
42. Qh5+ {[%clk 0:00:07.7]} 42... Kg8 {[%clk 0:00:04.1]} 43. Bg6 {[%clk
0:00:06.8]} 43... Qe7 {[%clk 0:00:01.3]} 44. Bf7+ {[%clk 0:00:07.2]} 1-0

[Event "Early-Titled-Tuesday-Blitz-February-13-2024"]
[Site "Chess.com"]
[Date "2024.02.13"]
[Round "9"]
[White "ChessQueen"]
[Black "Jaka_Brilej"]
[Result "1-0"]
[WhiteElo "2687"]
[BlackElo "2537"]
[TimeControl "180+1"]
[EndTime "9:48:36 PST"]
[Termination "ChessQueen won by resignation"]

1. Nf3 {[%clk 0:03:00.9]} 1... d5 {[%clk 0:02:57.9]} 2. g3 {[%clk 0:03:01.1]}
2... Nd7 {[%clk 0:02:58]} 3. d4 {[%clk 0:03:00.4]} 3... Nb6 {[%clk 0:02:57.8]}
4. Bg2 {[%clk 0:03:00]} 4... Nf6 {[%clk 0:02:58.3]} 5. O-O {[%clk 0:03:00.1]}
5... Bf5 {[%clk 0:02:58.8]} 6. a4 {[%clk 0:02:59.9]} 6... a5 {[%clk 0:02:57.1]}
7. Nc3 {[%clk 0:02:56.4]} 7... c6 {[%clk 0:02:51.3]} 8. Ne5 {[%clk 0:02:55.4]}
8... e6 {[%clk 0:02:49.4]} 9. f3 {[%clk 0:02:53.6]} 9... h6 {[%clk 0:02:45.8]}
10. e4 {[%clk 0:02:52.9]} 10... Bh7 {[%clk 0:02:46.5]} 11. Be3 {[%clk
0:02:41.5]} 11... Bb4 {[%clk 0:02:46.3]} 12. Qd3 {[%clk 0:02:26.1]} 12... O-O
{[%clk 0:02:44.7]} 13. Ne2 {[%clk 0:02:18.9]} 13... Bd6 {[%clk 0:02:37.3]} 14.
Ng4 {[%clk 0:02:11.1]} 14... Nxg4 {[%clk 0:02:28.8]} 15. fxg4 {[%clk 0:02:12]}
15... Be7 {[%clk 0:02:22.4]} 16. c3 {[%clk 0:02:06.9]} 16... Nc4 {[%clk
0:02:19.4]} 17. Nf4 {[%clk 0:01:37.5]} 17... Nxb2 {[%clk 0:02:11.4]} 18. Qe2
{[%clk 0:01:36.9]} 18... Nc4 {[%clk 0:02:10.2]} 19. Bc1 {[%clk 0:01:37]} 19...
Nd6 {[%clk 0:02:05.9]} 20. e5 {[%clk 0:01:30.9]} 20... Ne4 {[%clk 0:02:05.9]}
21. Qe1 {[%clk 0:01:18.5]} 21... c5 {[%clk 0:02:02.3]} 22. Be3 {[%clk
0:01:16.6]} 22... c4 {[%clk 0:01:46.8]} 23. Kh1 {[%clk 0:01:16.5]} 23... Rb8
{[%clk 0:01:46.5]} 24. Nh5 {[%clk 0:01:13.5]} 24... Bg5 {[%clk 0:01:41.5]} 25.
Bg1 {[%clk 0:01:12.5]} 25... Bd2 {[%clk 0:01:34.6]} 26. Qe2 {[%clk 0:01:08.7]}
26... Bxc3 {[%clk 0:01:33.8]} 27. Rad1 {[%clk 0:01:06.9]} 27... Bb4 {[%clk
0:01:31.4]} 28. Be3 {[%clk 0:01:03.4]} 28... Be7 {[%clk 0:01:26.8]} 29. Bxe4
{[%clk 0:00:56.5]} 29... Bxe4+ {[%clk 0:01:26.3]} 30. Kg1 {[%clk 0:00:57.4]}
30... Bg5 {[%clk 0:01:04.9]} 31. h4 {[%clk 0:00:56.3]} 31... Bxe3+ {[%clk
0:00:53.5]} 32. Qxe3 {[%clk 0:00:57.2]} 32... Bg6 {[%clk 0:00:47.6]} 33. Nf4
{[%clk 0:00:46.3]} 33... Bh7 {[%clk 0:00:47.7]} 34. Nh5 {[%clk 0:00:46.6]} 34...
Kh8 {[%clk 0:00:44.1]} 35. Rf2 {[%clk 0:00:40.1]} 35... b5 {[%clk 0:00:43.9]}
36. axb5 {[%clk 0:00:38.3]} 36... Rxb5 {[%clk 0:00:44.8]} 37. Rdf1 {[%clk
0:00:38.5]} 37... Rb3 {[%clk 0:00:44.9]} 38. Qc1 {[%clk 0:00:30.1]} 38... Qb6
{[%clk 0:00:29]} 39. Qf4 {[%clk 0:00:25]} 39... Rd3 {[%clk 0:00:24.8]} 40. Nxg7
{[%clk 0:00:21.1]} 40... Kxg7 {[%clk 0:00:17.9]} 41. g5 {[%clk 0:00:21.6]} 41...
h5 {[%clk 0:00:14.9]} 42. Qf6+ {[%clk 0:00:21.7]} 42... Kg8 {[%clk 0:00:15.3]}
43. g6 {[%clk 0:00:22]} 43... Qc7 {[%clk 0:00:10]} 44. gxh7+ {[%clk 0:00:21.6]}
44... Kxh7 {[%clk 0:00:10.1]} 45. Qg5 {[%clk 0:00:21.4]} 45... Rxg3+ {[%clk
0:00:06.6]} 46. Qxg3 {[%clk 0:00:21.5]} 46... Rg8 {[%clk 0:00:06.8]} 47. Rxf7+
{[%clk 0:00:22.2]} 47... Kh8 {[%clk 0:00:04.1]} 48. Qxg8+ {[%clk 0:00:21.2]}
48... Kxg8 {[%clk 0:00:05]} 49. Rxc7 {[%clk 0:00:21.4]} 1-0

[Event "Early-Titled-Tuesday-Blitz-February-13-2024"]
[Site "Chess.com"]
[Date "2024.02.13"]
[Round "9"]
[White "Cirky"]
[Black "Mikasinski"]
[Result "0-1"]
[WhiteElo "2479"]
[BlackElo "2646"]
[TimeControl "180+1"]
[EndTime "9:48:37 PST"]
[Termination "Mikasinski won by checkmate"]

1. d4 {[%clk 0:03:00.9]} 1... Nf6 {[%clk 0:02:59.5]} 2. c4 {[%clk 0:02:58.1]}
2... g6 {[%clk 0:02:59]} 3. Nc3 {[%clk 0:02:58]} 3... Bg7 {[%clk 0:02:59]} 4. e4
{[%clk 0:02:58.3]} 4... O-O {[%clk 0:02:59.6]} 5. Nf3 {[%clk 0:02:58.6]} 5... d6
{[%clk 0:03:00.2]} 6. h3 {[%clk 0:02:58.7]} 6... e5 {[%clk 0:03:00.1]} 7. d5
{[%clk 0:02:59]} 7... Nh5 {[%clk 0:03:00.7]} 8. g3 {[%clk 0:02:54.9]} 8... Qe8
{[%clk 0:02:59.5]} 9. Be2 {[%clk 0:02:41.6]} 9... Na6 {[%clk 0:02:57]} 10. Nh4
{[%clk 0:02:19.4]} 10... Nf6 {[%clk 0:02:48]} 11. Be3 {[%clk 0:02:19.6]} 11...
Nc5 {[%clk 0:02:45.8]} 12. Qc2 {[%clk 0:02:19.7]} 12... a5 {[%clk 0:02:42.6]}
13. g4 {[%clk 0:02:16.7]} 13... Qe7 {[%clk 0:02:39.7]} 14. Nf3 {[%clk 0:02:17]}
14... h5 {[%clk 0:02:37.4]} 15. gxh5 {[%clk 0:02:09.2]} 15... Nxh5 {[%clk
0:02:35.9]} 16. O-O-O {[%clk 0:01:59.2]} 16... Nf4 {[%clk 0:02:34.5]} 17. Bxf4
{[%clk 0:01:59.1]} 17... exf4 {[%clk 0:02:34.7]} 18. Nd4 {[%clk 0:01:47.6]}
18... a4 {[%clk 0:02:28.9]} 19. h4 {[%clk 0:01:31]} 19... a3 {[%clk 0:02:24.3]}
20. b3 {[%clk 0:01:26.3]} 20... Re8 {[%clk 0:02:22.1]} 21. Bf3 {[%clk 0:01:18]}
21... Na6 {[%clk 0:02:18.8]} 22. Kb1 {[%clk 0:01:13]} 22... Qe5 {[%clk
0:02:13.1]} 23. Rhg1 {[%clk 0:00:49.7]} 23... c5 {[%clk 0:01:57.9]} 24. dxc6
{[%clk 0:00:40.6]} 24... bxc6 {[%clk 0:01:56.6]} 25. Rg5 {[%clk 0:00:40.9]}
25... Qf6 {[%clk 0:01:55.7]} 26. Nde2 {[%clk 0:00:37.6]} 26... Rb8 {[%clk
0:01:44.7]} 27. Qd2 {[%clk 0:00:34.5]} 27... Bh6 {[%clk 0:01:13.6]} 28. Rgg1
{[%clk 0:00:33.2]} 28... Be6 {[%clk 0:01:05.6]} 29. h5 {[%clk 0:00:32.3]} 29...
Bxc4 {[%clk 0:01:02.1]} 30. hxg6 {[%clk 0:00:32.4]} 30... fxg6 {[%clk
0:00:57.8]} 31. Qxd6 {[%clk 0:00:30.8]} 31... Re6 {[%clk 0:00:58.1]} 32. Qd4
{[%clk 0:00:23.1]} 32... Bxe2 {[%clk 0:00:54.7]} 33. Nxe2 {[%clk 0:00:20.8]}
33... Qf7 {[%clk 0:00:45.2]} 34. Qc4 {[%clk 0:00:16.3]} 34... Nb4 {[%clk
0:00:32.6]} 35. Bg4 {[%clk 0:00:16.5]} 35... Re7 {[%clk 0:00:25]} 36. Qxf7+
{[%clk 0:00:15.9]} 36... Kxf7 {[%clk 0:00:25.6]} 37. f3 {[%clk 0:00:15.3]} 37...
Bg7 {[%clk 0:00:19.1]} 38. Nd4 {[%clk 0:00:14.5]} 38... Rh8 {[%clk 0:00:09.4]}
39. Ne6 {[%clk 0:00:13.7]} 39... Rh2 {[%clk 0:00:04.9]} 40. Nxg7 {[%clk
0:00:10.7]} 40... Rb2+ {[%clk 0:00:05.2]} 41. Kc1 {[%clk 0:00:01.5]} 41... Nxa2#
{[%clk 0:00:05.7]} 0-1

[Event "Early-Titled-Tuesday-Blitz-February-13-2024"]
[Site "Chess.com"]
[Date "2024.02.13"]
[Round "9"]
[White "deribas12345"]
[Black "Arystanner"]
[Result "1-0"]
[WhiteElo "2613"]
[BlackElo "2785"]
[TimeControl "180+1"]
[EndTime "9:48:39 PST"]
[Termination "deribas12345 won by resignation"]

1. d4 {[%clk 0:03:00.9]} 1... Nf6 {[%clk 0:02:58.9]} 2. c4 {[%clk 0:03:00.6]}
2... g6 {[%clk 0:02:59.5]} 3. Nc3 {[%clk 0:03:00.5]} 3... Bg7 {[%clk 0:03:00.2]}
4. e4 {[%clk 0:03:00.9]} 4... d6 {[%clk 0:03:00.9]} 5. Nge2 {[%clk 0:02:57.7]}
5... O-O {[%clk 0:03:00.4]} 6. Ng3 {[%clk 0:02:57.7]} 6... a5 {[%clk 0:02:59.5]}
7. Be2 {[%clk 0:02:57.5]} 7... h5 {[%clk 0:02:57.1]} 8. O-O {[%clk 0:02:56.6]}
8... a4 {[%clk 0:02:56.1]} 9. Bg5 {[%clk 0:02:50.8]} 9... a3 {[%clk 0:02:51.4]}
10. b3 {[%clk 0:02:47.3]} 10... Nc6 {[%clk 0:02:50.9]} 11. d5 {[%clk 0:02:36.4]}
11... Nh7 {[%clk 0:02:49.7]} 12. Bd2 {[%clk 0:02:26]} 12... Nd4 {[%clk
0:02:50.2]} 13. Bxh5 {[%clk 0:02:13.6]} 13... gxh5 {[%clk 0:02:45.1]} 14. Nxh5
{[%clk 0:02:13.8]} 14... e5 {[%clk 0:02:30.8]} 15. dxe6 {[%clk 0:02:10.3]} 15...
fxe6 {[%clk 0:02:29]} 16. Nxg7 {[%clk 0:02:07.6]} 16... Kxg7 {[%clk 0:02:27.8]}
17. Be3 {[%clk 0:01:56.4]} 17... Nc6 {[%clk 0:02:24]} 18. f4 {[%clk 0:01:56.4]}
18... Bd7 {[%clk 0:02:12.1]} 19. Rf3 {[%clk 0:01:36.5]} 19... Kh8 {[%clk
0:02:10.3]} 20. Nb5 {[%clk 0:01:36.1]} 20... e5 {[%clk 0:02:07]} 21. f5 {[%clk
0:01:33.1]} 21... Qh4 {[%clk 0:02:06.9]} 22. Rh3 {[%clk 0:01:21.9]} 22... Qxe4
{[%clk 0:01:53.4]} 23. Rxh7+ {[%clk 0:01:11.1]} 23... Kg8 {[%clk 0:01:19.8]} 24.
Rxd7 {[%clk 0:00:51.7]} 24... Qxe3+ {[%clk 0:01:18.9]} 25. Kh1 {[%clk
0:00:51.7]} 25... Rxf5 {[%clk 0:01:19.3]} 26. Qg4+ {[%clk 0:00:44.6]} 26... Qg5
{[%clk 0:01:17.1]} 27. Qxg5+ {[%clk 0:00:43.4]} 27... Rxg5 {[%clk 0:01:17.4]}
28. Nxc7 {[%clk 0:00:43.1]} 28... Rf8 {[%clk 0:01:10.5]} 29. Ne6 {[%clk
0:00:41]} 29... Rgf5 {[%clk 0:00:56.5]} 30. Nxf8 {[%clk 0:00:40.9]} 30... Kxf8
{[%clk 0:00:57.4]} 31. Rxb7 {[%clk 0:00:27.6]} 31... e4 {[%clk 0:00:57.2]} 32.
Re1 {[%clk 0:00:20.9]} 32... Rf2 {[%clk 0:00:54.8]} 33. Kg1 {[%clk 0:00:18.8]}
33... Rxa2 {[%clk 0:00:54.8]} 34. Rxe4 {[%clk 0:00:19.1]} 34... Ne5 {[%clk
0:00:54.6]} 35. Rh4 {[%clk 0:00:17]} 35... Kg8 {[%clk 0:00:49.9]} 36. Rhh7
{[%clk 0:00:11.8]} 36... Ra1+ {[%clk 0:00:45.2]} 37. Kf2 {[%clk 0:00:11.4]}
37... a2 {[%clk 0:00:45.6]} 38. Ra7 {[%clk 0:00:06.6]} 38... Rb1 {[%clk
0:00:45.1]} 39. Rhg7+ {[%clk 0:00:05.5]} 39... Kf8 {[%clk 0:00:44.5]} 40. Rgb7
{[%clk 0:00:05.7]} 40... Rb2+ {[%clk 0:00:11.8]} 41. Kg3 {[%clk 0:00:05.7]} 1-0

[Event "Early-Titled-Tuesday-Blitz-February-13-2024"]
[Site "Chess.com"]
[Date "2024.02.13"]
[Round "9"]
[White "GM_dmitrij"]
[Black "Sina_Movahed"]
[Result "0-1"]
[WhiteElo "3051"]
[BlackElo "3016"]
[TimeControl "180+1"]
[EndTime "9:48:41 PST"]
[Termination "Sina_Movahed won by checkmate"]

1. e4 {[%clk 0:02:53]} 1... c5 {[%clk 0:03:00.6]} 2. Nf3 {[%clk 0:02:52.1]} 2...
d6 {[%clk 0:03:01.2]} 3. Bb5+ {[%clk 0:02:52.2]} 3... Nd7 {[%clk 0:03:00.7]} 4.
c4 {[%clk 0:02:51.6]} 4... Nf6 {[%clk 0:03:00.1]} 5. Nc3 {[%clk 0:02:51.6]} 5...
g6 {[%clk 0:03:00.4]} 6. d3 {[%clk 0:02:51.3]} 6... Bg7 {[%clk 0:03:00.7]} 7. h3
{[%clk 0:02:50.3]} 7... O-O {[%clk 0:03:01]} 8. Ba4 {[%clk 0:02:50.9]} 8... Ne5
{[%clk 0:02:59.1]} 9. Nxe5 {[%clk 0:02:46.5]} 9... dxe5 {[%clk 0:03:00]} 10. Be3
{[%clk 0:02:47.1]} 10... b6 {[%clk 0:02:57.8]} 11. Qd2 {[%clk 0:02:43.4]} 11...
Nh5 {[%clk 0:02:45.1]} 12. Ne2 {[%clk 0:02:34.3]} 12... Qc7 {[%clk 0:02:40]} 13.
g4 {[%clk 0:02:28.7]} 13... Nf6 {[%clk 0:02:35.2]} 14. Ng3 {[%clk 0:02:23.5]}
14... Bb7 {[%clk 0:02:26.8]} 15. f3 {[%clk 0:02:22.7]} 15... Rad8 {[%clk
0:02:25.4]} 16. h4 {[%clk 0:02:16.8]} 16... Rd6 {[%clk 0:02:22.9]} 17. h5 {[%clk
0:02:11.5]} 17... Rfd8 {[%clk 0:02:22.7]} 18. Bc2 {[%clk 0:02:11.7]} 18... e6
{[%clk 0:02:08.1]} 19. Bh6 {[%clk 0:02:03.7]} 19... Bh8 {[%clk 0:02:01.9]} 20.
O-O-O {[%clk 0:02:01]} 20... Nd7 {[%clk 0:01:59.5]} 21. Qh2 {[%clk 0:01:32.9]}
21... Nb8 {[%clk 0:01:54.5]} 22. Qh4 {[%clk 0:01:15.6]} 22... Nc6 {[%clk
0:01:52.1]} 23. Bg5 {[%clk 0:01:13.1]} 23... R8d7 {[%clk 0:01:38.2]} 24. Rdg1
{[%clk 0:00:59.3]} 24... Nd4 {[%clk 0:01:36.3]} 25. Bd1 {[%clk 0:00:57]} 25...
b5 {[%clk 0:01:27.1]} 26. hxg6 {[%clk 0:00:46.7]} 26... fxg6 {[%clk 0:01:26.8]}
27. Nh5 {[%clk 0:00:42.5]} 27... bxc4 {[%clk 0:01:10.3]} 28. dxc4 {[%clk
0:00:33.4]} 28... Qa5 {[%clk 0:01:00.5]} 29. a3 {[%clk 0:00:28.5]} 29... Qa6
{[%clk 0:01:00.2]} 30. Kb1 {[%clk 0:00:23.7]} 30... Qxc4 {[%clk 0:00:20.3]} 31.
Bf6 {[%clk 0:00:23.7]} 31... Qd3+ {[%clk 0:00:16.8]} 32. Ka1 {[%clk 0:00:24]}
32... Ra6 {[%clk 0:00:14.6]} 33. Rh2 {[%clk 0:00:18.4]} 33... Bxe4 {[%clk
0:00:10.8]} 34. Ba4 {[%clk 0:00:11.5]} 34... Rxa4 {[%clk 0:00:09]} 35. fxe4
{[%clk 0:00:11.5]} 35... Nb3+ {[%clk 0:00:08.5]} 36. Ka2 {[%clk 0:00:11.6]}
36... Nd2 {[%clk 0:00:07.7]} 37. Rxd2 {[%clk 0:00:09.5]} 37... Qxd2 {[%clk
0:00:07.5]} 38. Bxh8 {[%clk 0:00:10.2]} 38... Rb7 {[%clk 0:00:03.2]} 39. Bxe5
{[%clk 0:00:06.5]} 39... Rxa3+ {[%clk 0:00:02.3]} 40. Kb1 {[%clk 0:00:05.1]}
40... Qd3+ {[%clk 0:00:02.9]} 41. Kc1 {[%clk 0:00:05.7]} 41... Ra1# {[%clk
0:00:03.3]} 0-1

[Event "Early-Titled-Tuesday-Blitz-February-13-2024"]
[Site "Chess.com"]
[Date "2024.02.13"]
[Round "9"]
[White "HamedWafa4"]
[Black "Crazy_girl99"]
[Result "1-0"]
[WhiteElo "2746"]
[BlackElo "2595"]
[TimeControl "180+1"]
[EndTime "9:48:45 PST"]
[Termination "HamedWafa4 won on time"]

1. e4 {[%clk 0:02:57.4]} 1... e5 {[%clk 0:02:59.6]} 2. Nf3 {[%clk 0:02:54.6]}
2... Nc6 {[%clk 0:02:59.6]} 3. Bb5 {[%clk 0:02:53.7]} 3... a6 {[%clk 0:02:59.5]}
4. Ba4 {[%clk 0:02:48.6]} 4... Nf6 {[%clk 0:02:59.2]} 5. O-O {[%clk 0:02:47.4]}
5... Nxe4 {[%clk 0:02:57.7]} 6. d4 {[%clk 0:02:45.8]} 6... b5 {[%clk 0:02:58.1]}
7. Bb3 {[%clk 0:02:45.2]} 7... d5 {[%clk 0:02:58.4]} 8. dxe5 {[%clk 0:02:44.2]}
8... Be6 {[%clk 0:02:58.7]} 9. Qe2 {[%clk 0:02:39.4]} 9... Be7 {[%clk
0:02:58.3]} 10. Be3 {[%clk 0:02:37.8]} 10... O-O {[%clk 0:02:53.7]} 11. Nbd2
{[%clk 0:02:37.1]} 11... Qc8 {[%clk 0:02:45.9]} 12. c3 {[%clk 0:02:20.4]} 12...
Rd8 {[%clk 0:02:33.5]} 13. Bc2 {[%clk 0:02:17.4]} 13... Bf5 {[%clk 0:02:30.9]}
14. Nd4 {[%clk 0:02:10.9]} 14... Nxd4 {[%clk 0:01:58]} 15. cxd4 {[%clk
0:02:00.5]} 15... c5 {[%clk 0:01:56.6]} 16. Bxe4 {[%clk 0:01:57.1]} 16... dxe4
{[%clk 0:01:48.1]} 17. dxc5 {[%clk 0:01:57.2]} 17... Qe6 {[%clk 0:01:34]} 18. f4
{[%clk 0:01:38.6]} 18... exf3 {[%clk 0:01:25.5]} 19. Qxf3 {[%clk 0:01:37.7]}
19... Bg6 {[%clk 0:01:08.5]} 20. b4 {[%clk 0:01:24.6]} 20... Qxe5 {[%clk
0:01:06]} 21. Rae1 {[%clk 0:01:25.1]} 21... Qc3 {[%clk 0:00:52]} 22. Qf4 {[%clk
0:00:49.9]} 22... a5 {[%clk 0:00:35.9]} 23. Qc7 {[%clk 0:00:30.3]} 23... Bf8
{[%clk 0:00:29.8]} 24. bxa5 {[%clk 0:00:16.6]} 24... Rxd2 {[%clk 0:00:26.5]} 25.
Bxd2 {[%clk 0:00:17.5]} 25... Qxd2 {[%clk 0:00:26.9]} 26. Qc6 {[%clk 0:00:17.7]}
26... Rxa5 {[%clk 0:00:14.2]} 27. Re8 {[%clk 0:00:17.8]} 27... f6 {[%clk
0:00:08.8]} 28. Rc8 {[%clk 0:00:08.9]} 28... Rxa2 {[%clk 0:00:08.6]} 29. Qf3
{[%clk 0:00:05.6]} 29... h5 {[%clk 0:00:07.6]} 30. c6 {[%clk 0:00:05.7]} 30...
Qd4+ {[%clk 0:00:07.1]} 31. Kh1 {[%clk 0:00:05.6]} 31... Be4 {[%clk 0:00:07.5]}
32. c7 {[%clk 0:00:05.4]} 32... Bxf3 {[%clk 0:00:07.7]} 33. Rxf8+ {[%clk
0:00:06]} 33... Kh7 {[%clk 0:00:07.2]} 34. Rh8+ {[%clk 0:00:05.9]} 34... Kg6
{[%clk 0:00:07.1]} 35. gxf3 {[%clk 0:00:06.1]} 35... Qf4 {[%clk 0:00:06.2]} 36.
Rg1+ {[%clk 0:00:05.1]} 36... Kf7 {[%clk 0:00:06.7]} 37. Rf8+ {[%clk 0:00:04.8]}
37... Ke7 {[%clk 0:00:05.1]} 38. Re1+ {[%clk 0:00:05]} 38... Kd6 {[%clk
0:00:03.2]} 39. c8=N+ {[%clk 0:00:02.2]} 39... Kd7 {[%clk 0:00:03]} 40. Rf7+
{[%clk 0:00:02]} 40... Kc6 {[%clk 0:00:01.4]} 41. Re6+ {[%clk 0:00:01.2]} 1-0

[Event "Early-Titled-Tuesday-Blitz-February-13-2024"]
[Site "Chess.com"]
[Date "2024.02.13"]
[Round "9"]
[White "Yurovskykh_Oleksandr"]
[Black "ajeale2"]
[Result "1-0"]
[WhiteElo "2666"]
[BlackElo "2511"]
[TimeControl "180+1"]
[EndTime "9:48:45 PST"]
[Termination "Yurovskykh_Oleksandr won on time"]

1. d4 {[%clk 0:02:54.2]} 1... d5 {[%clk 0:02:55.9]} 2. Bf4 {[%clk 0:02:53.9]}
2... e6 {[%clk 0:02:55.6]} 3. e3 {[%clk 0:02:54.5]} 3... Nf6 {[%clk 0:02:54.6]}
4. Nd2 {[%clk 0:02:53.9]} 4... c5 {[%clk 0:02:54.1]} 5. c3 {[%clk 0:02:53.9]}
5... Nc6 {[%clk 0:02:54.7]} 6. Ngf3 {[%clk 0:02:52.6]} 6... Bd6 {[%clk
0:02:54.9]} 7. Bg3 {[%clk 0:02:52.7]} 7... O-O {[%clk 0:02:54.8]} 8. Bb5 {[%clk
0:02:52.7]} 8... Ne4 {[%clk 0:02:41.9]} 9. Nxe4 {[%clk 0:02:49.3]} 9... dxe4
{[%clk 0:02:41]} 10. Nd2 {[%clk 0:02:49.8]} 10... cxd4 {[%clk 0:02:37.8]} 11.
exd4 {[%clk 0:02:44.9]} 11... f5 {[%clk 0:02:31.9]} 12. Bxd6 {[%clk 0:02:28.1]}
12... Qxd6 {[%clk 0:02:31.6]} 13. O-O {[%clk 0:02:28.3]} 13... Ne7 {[%clk
0:01:42.6]} 14. Nc4 {[%clk 0:02:23.4]} 14... Qd5 {[%clk 0:01:42.5]} 15. Qb3
{[%clk 0:02:10.1]} 15... Ng6 {[%clk 0:01:35]} 16. Ne5 {[%clk 0:01:43.9]} 16...
Nxe5 {[%clk 0:01:28.2]} 17. Qxd5 {[%clk 0:01:43.2]} 17... Nf3+ {[%clk
0:01:27.9]} 18. gxf3 {[%clk 0:01:40.1]} 18... exd5 {[%clk 0:01:28.8]} 19. f4
{[%clk 0:01:35.4]} 19... Rf6 {[%clk 0:01:14.4]} 20. h3 {[%clk 0:01:25]} 20...
Rb6 {[%clk 0:01:07.1]} 21. Ba4 {[%clk 0:01:15.8]} 21... Rxb2 {[%clk 0:01:07]}
22. Rfb1 {[%clk 0:01:10.4]} 22... Rb6 {[%clk 0:00:42.1]} 23. Rxb6 {[%clk
0:00:53.1]} 23... axb6 {[%clk 0:00:42]} 24. Bb3 {[%clk 0:00:53]} 24... Be6
{[%clk 0:00:41.1]} 25. Kf1 {[%clk 0:00:51.6]} 25... Rc8 {[%clk 0:00:35.4]} 26.
Rc1 {[%clk 0:00:51.1]} 26... b5 {[%clk 0:00:35.8]} 27. Ke2 {[%clk 0:00:49.8]}
27... b4 {[%clk 0:00:34]} 28. Kd2 {[%clk 0:00:49.3]} 28... bxc3+ {[%clk
0:00:32.2]} 29. Rxc3 {[%clk 0:00:50.2]} 29... Rxc3 {[%clk 0:00:28.2]} 30. Kxc3
{[%clk 0:00:51.1]} 30... h6 {[%clk 0:00:17.8]} 31. h4 {[%clk 0:00:51.3]} 31...
g5 {[%clk 0:00:18.1]} 32. fxg5 {[%clk 0:00:48.3]} 32... hxg5 {[%clk 0:00:18.8]}
33. hxg5 {[%clk 0:00:49.2]} 33... Kg7 {[%clk 0:00:19.3]} 34. f4 {[%clk 0:00:20]}
34... exf3 {[%clk 0:00:18.8]} 35. Kd2 {[%clk 0:00:20.3]} 35... f4 {[%clk
0:00:14]} 36. Ke1 {[%clk 0:00:20.4]} 36... Kg6 {[%clk 0:00:10.7]} 37. Kf2 {[%clk
0:00:20.3]} 37... Kxg5 {[%clk 0:00:11.4]} 38. Kxf3 {[%clk 0:00:20.9]} 38... Bg4+
{[%clk 0:00:08.8]} 39. Kf2 {[%clk 0:00:21.1]} 39... Be6 {[%clk 0:00:09.4]} 40.
Kf3 {[%clk 0:00:21]} 40... b5 {[%clk 0:00:05.2]} 41. a3 {[%clk 0:00:21.1]} 41...
Kf5 {[%clk 0:00:04.9]} 42. Bc2+ {[%clk 0:00:21.2]} 42... Kg5 {[%clk 0:00:04.7]}
43. Bd3 {[%clk 0:00:21.2]} 43... Bd7 {[%clk 0:00:03.1]} 44. Kf2 {[%clk
0:00:21.6]} 44... Kg4 {[%clk 0:00:02.9]} 45. Be2+ {[%clk 0:00:22]} 45... Kg5
{[%clk 0:00:03.8]} 46. Bd3 {[%clk 0:00:21.9]} 46... Bf5 {[%clk 0:00:04]} 47.
Bxb5 {[%clk 0:00:21.8]} 47... Be4 {[%clk 0:00:04.3]} 48. a4 {[%clk 0:00:18.8]}
48... Kf6 {[%clk 0:00:05.2]} 49. a5 {[%clk 0:00:18.7]} 49... Ke7 {[%clk
0:00:05.9]} 50. a6 {[%clk 0:00:18.9]} 1-0